Cogmind - Beta 17 @@@ ROGUE MODE // 2026.08.03 @ 13:28:57 Player: Blank Result: Destroyed by G-34 Mercenary with Small Laser Performance ------------- Evolutions (1) 500 Regions Visited (4) 800 Robots Destroyed (51) 255 Value Destroyed (1210) 1210 Prototype IDs (4) 80 Alien Tech Used (0) 0 Bonus (280) 280 TOTAL SCORE: 3125 Bonus ------- High Alert Combat Kills 77 Follower Combat Kills 393 Friendly Fire -190 Cogmind --------- Core Integrity 0/400 Matter 291/300 Energy 150/150 System Corruption 4% Temperature Cool (6) Movement Walking (190) Ox1 Location -9/Storage Parts ------- > --- POWER (1) -------- Light Angular Momentum Engine > --- PROPULSION (3) --- Aluminum Leg Aluminum Leg Improved Aluminum Leg > --- UTILITY (2) ------ Improved Heat Sink Large Storage Unit > --- WEAPON (3) ------- Heavy Particle Cannon Katana > --- INVENTORY (15) --- Ion Engine Improved Ion Engine Light Treads Light Treads Improved Heat Sink Structural Scanner Visual Processing Unit Terrain Scanner Drone Bay (0/2) Improved EM Shotgun Improved Medium Laser Rocket Launcher Mini Grenade Launcher Peak State ------------ > --- POWER ------------ Heavy Ion Engine > --- PROPULSION ------- Improved Aluminum Leg Improved Aluminum Leg Carbon-fiber Leg > --- UTILITY ---------- Medium Storage Unit Drone Bay > --- WEAPON ----------- Improved Medium Laser Advanced Beam Cannon Advanced Beam Cannon > --- INVENTORY -------- Light Nuclear Core Improved Heat Sink Large Storage Unit Visual Processing Unit Improved Targeting Computer Improved Medium Laser EM Pulse Cannon Heavy Particle Cannon Mini Grenade Launcher [Rating: 27] Favorites ----------- Power Light Nuclear Core Engine Ion Engine Power Core Light Nuclear Core Propulsion Aluminum Leg Treads Light Treads Leg Aluminum Leg Utility Sensor Array Device Sensor Array Storage Small Storage Unit Processor Improved Targeting Computer Weapon Advanced Beam Cannon Energy Gun Improved Medium Laser Energy Cannon Advanced Beam Cannon Launcher Mini Grenade Launcher Slashing Weapon Katana Build | -11 -10 -10 -9 -9 ------- Run | Yrd Mat Min Mat Sto Slots Evolved 2 | . . . 2 . Power . | . . . . . Propulsion 1 | . . . 1 . Utility . | . . . . . Weapon 1 | . . . 1 . Parts Attached 50 | 7 5 3 12 23 Power 4 | 1 . 1 . 2 Engine 3 | 1 . . . 2 Core 1 | . . 1 . . Reactor . | . . . . . Propulsion 19 | 2 1 1 5 10 Treads 1 | . . . . 1 Leg 18 | 2 1 1 5 9 Wheel . | . . . . . Hover . | . . . . . Flight . | . . . . . Utility 10 | 2 2 . 2 4 Device 6 | 1 2 . 1 2 Storage 3 | 1 . . 1 1 Processor 1 | . . . . 1 Hackware . | . . . . . Protection . | . . . . . Artifact . | . . . . . Weapon 17 | 2 2 1 5 7 Energy Gun 9 | 2 1 . 2 4 Energy Cannon 6 | . 1 1 2 2 Ballistic Gun . | . . . . . Ballistic Cannon . | . . . . . Launcher 1 | . . . 1 . Special Weapon . | . . . . . Impact Weapon . | . . . . . Slashing Weapon 1 | . . . . 1 Piercing Weapon . | . . . . . Special Melee Weapon . | . . . . . Unidentified Prototypes 4 | . . . 3 1 Parts Lost 14 | . . . 1 13 Power 2 | . . . . 2 Propulsion 5 | . . . . 5 Utility 2 | . . . . 2 Weapon 5 | . . . 1 4 Highest Loss Streak 5 | . . . 1 5 To Critical Strikes . | . . . . . Average Backups 8 | 3 7 7 7 10 Power . | . . . . 1 Propulsion 1 | 3 3 2 . . Utility 3 | . 1 3 3 4 Weapon 3 | . 1 2 2 3 Tool/Special . | . . . . . Unused Backups 23 | . 8 4 . 11 Power 3 | . 1 . . 2 Propulsion 6 | . 3 1 . 2 Utility 6 | . 1 . . 5 Weapon 8 | . 3 3 . 2 Tool/Special . | . . . . . Average Slot Usage (%) 98 | . 100 100 99 97 Engine 7 | . 14 10 . 7 Core 4 | . . 3 11 3 Leg 30 | . 28 28 33 31 Device 11 | . 14 14 11 11 Storage 11 | . 14 14 11 10 Energy Gun 13 | . 24 12 10 11 Energy Cannon 14 | . 3 15 19 16 Launcher 1 | . . . 2 1 Slashing Weapon 1 | . . . . 3 Peak Build Rating 27 | 7 8 12 22 27 Average Rating 16 | 4 7 8 16 21 On Entrance 9 | . 7 8 12 22 Avg Prop Armor Cover (%) 9 | . . . . 9 Naked Turns . | . . . . . Heaviest Build 41 | 13 16 20 31 41 Greatest Support 41 | 20 20 20 33 41 Greatest Overweight (x) 6 | 3 . . . 6 Average Overweight (x) . | . . . . . Largest Inventory Capacity 15 | 8 8 8 10 15 Average Capacity 10 | 7 8 8 8 12 Most Carried 13 | 7 8 8 10 13 Average Carried 8 | 4 7 7 7 10 Final Capacity 15 | 8 8 8 10 15 Final Carried 13 | 7 8 8 10 13 Class Distribution -------------------- 30% | Scavenger-Skirmisher 27% | Mutant 19% | Scavenger-Mutant 15% | Scavenger-Gunner 6% | Skirmisher Dominant Class ---------------- Mutant | -10/Materials Mutant | -10/Mines Scavenger-Skirmisher | -9/Materials Scavenger-Mutant | -9/Storage Resources | -11 -10 -10 -9 -9 ----------- Run | Yrd Mat Min Mat Sto Matter Collected 1174 | 141 124 85 182 642 Remotely . | . . . . . Salvage Created 1743 | 13 221 . 280 1229 Parts 98 | 3 15 . 13 67 Haulers Intercepted 9 | . 1 . 4 4 Recyclers Shooed 1 | . . . 1 . Parts Field Recycled . | . . . . . Retrieved Matter . | . . . . . Parts Self-Destructed . | . . . . . Prevented . | . . . . . Parts Restored . | . . . . . Kills | -11 -10 -10 -9 -9 ------- Run | Yrd Mat Min Mat Sto Combat Hostiles Destroyed 36 | . 8 . 5 23 Melee 6 | . . . . 6 Guns 14 | . 8 . 2 4 Cannons 9 | . . . . 9 AOE 7 | . . . 3 4 Classes Destroyed 11 | 1 3 . 2 5 Worker 2 | . . . . 2 Builder 2 | . . . . 2 Tunneler 1 | 1 . . . . Hauler 9 | . 1 . 4 4 Recycler 1 | . . . . 1 Swarmer 12 | . 6 . 3 3 Grunt 8 | . 2 . . 6 Brawler 1 | . . . . 1 Duelist 4 | . . . 1 3 Protector 1 | . . . . 1 Sentry 10 | . . . 1 9 Best Kill Streak 8 | 1 3 . 4 8 Combat Bots Only 4 | . 3 . 4 4 Max Kills in Single Turn 2 | 1 1 . 2 2 Gunslinging . | . . . . . Exploded 2 | . . . 2 1 Melee 1 | . . . . 1 Uniques/NPCs Destroyed . | . . . . . Combat | -11 -10 -10 -9 -9 -------- Run | Yrd Mat Min Mat Sto Hostile Shots Fired 204 | . 44 1 24 135 Missed 57 | . 11 . 9 37 Hits 147 | . 33 1 15 98 Melee 18 | . . . 2 16 Projectile 129 | . 33 1 13 82 Critical Strikes 9 | . . . 1 8 Damage Taken 2333 | . 316 15 301 1701 Core 511 | . 102 . 43 366 Absorbed by Shields . | . . . . . Core Remaining (%) 79 | 100 . 59 . . Volleys Fired 89 | 1 21 . 16 51 Largest 3 | 2 2 . 3 3 Hottest 211 | 80 80 . 206 211 Shots Fired 202 | 2 42 . 38 120 Gun 96 | 2 42 . 11 41 Cannon 86 | . . . 22 64 Launcher 20 | . . . 5 15 Special . | . . . . . Kinetic . | . . . . . Thermal 171 | 2 42 . 33 94 Explosive 20 | . . . 5 15 Electromagnetic 11 | . . . . 11 Robot Hit Streak 15 | 2 6 . 7 15 Robot Miss Streak 3 | . 3 . 2 3 Penetration Max . | . . . . . Secondary Targets 3 | . 3 . . . Max Gunslinging Chain 1 | . 1 . . . Shots Hit Robots 143 | 2 29 . 17 95 Core Hits 83 | 1 13 . 17 52 Critical Kills . | . . . . . Critical Parts Destroyed . | . . . . . Critical Strikes 7 | . . . 1 6 Burn 4 | . . . 1 3 Sever 3 | . . . . 3 Melee Attacks 31 | . . . . 31 Impact . | . . . . . Slashing 31 | . . . . 31 Piercing . | . . . . . Sneak Attacks 1 | . . . . 1 Combat Hostiles . | . . . . . Follow-up Attacks . | . . . . . Damage Inflicted 4069 | 24 317 . 781 2947 Guns 951 | 24 317 . 136 474 Cannons 1270 | . . . 303 967 Explosions 1224 | . . . 328 896 Melee 610 | . . . . 610 Ramming 14 | . . . 14 . Kinetic . | . . . . . Thermal 2223 | 24 317 . 439 1443 Explosive 1040 | . . . 328 712 Electromagnetic 182 | . . . . 182 Impact . | . . . . . Slashing 610 | . . . . 610 Piercing . | . . . . . Highest Corruption 4 | . . . 1 4 Average Corruption 2 | . . . 1 2 Corruption Purged . | . . . . . Corruption Blocked . | . . . . . Effects 20 | . . . 2 18 Message Errors 3 | . . . . 3 Matter Fused 5 | . . . . 5 Heat Flow Errors 3 | . . . 1 2 Energy Discharges 1 | . . . . 1 Data Loss (minor) 5 | . . . 1 4 Data Loss (major) 1 | . . . . 1 Misfires 1 | . . . . 1 Weapon Failures 1 | . . . . 1 Overload Shots . | . . . . . Overflow Damage 49 | . . . . 49 Projectiles . | . . . . . Explosions 27 | . . . . 27 Melee 22 | . . . . 22 Knockbacks . | . . . . . Impact . | . . . . . Kinetic . | . . . . . Secondary . | . . . . . Self-Inflicted Damage 207 | . . . 46 161 Shots 7 | . . . 1 6 Rammed . | . . . . . Targets Rammed 4 | . . . 4 . Kicked 4 | . . . 4 . Crushed . | . . . . . Highest Temperature 627 | 18 276 . 528 627 Average Temperature 157 | 12 116 . 171 163 Received Heat Transfer 495 | . 78 9 90 318 Effects 18 | . . . 4 14 Shutdowns 3 | . . . 1 2 Energy Bleed 2 | . . . . 2 Interference 3 | . . . 2 1 Matter Decay 1 | . . . . 1 Short Circuit 1 | . . . . 1 Damage (minor) 2 | . . . 1 1 Damage (major) 6 | . . . . 6 Siege Activations . | . . . . . Martial Activations . | . . . . . Shielding Activations . | . . . . . Robots Disrupted 1 | . . . . 1 Combat Hostiles 1 | . . . . 1 Robots Corrupted . | . . . . . Combat Hostiles . | . . . . . Parts Fried . | . . . . . Impact Corruptions . | . . . . . Robots Melted . | . . . . . Combat Hostiles . | . . . . . Parts Melted 11 | . 2 . 4 5 Heat Transferred 4432 | 50 700 . 888 2794 Parts Sabotaged . | . . . . . Parts Stolen . | . . . . . Parts Stripped . | . . . . . Power Chain Reactions 2 | . . . . 2 Alert | -11 -10 -10 -9 -9 ------- Run | Yrd Mat Min Mat Sto Maximum Alert Level 2 | . . . 1 2 Low Security (%) 57 | 100 100 100 92 20 Level 1 22 | . . . 7 39 Level 2 20 | . . . . 39 Level 3 . | . . . . . Level 4 . | . . . . . Level 5 . | . . . . . High Security . | . . . . . Max Security . | . . . . . Peak Influence 542 | 5 150 58 215 542 Initial 65 | . 3 21 10 65 Average 202 | . 72 14 94 333 Influence Increases 1734 | 5 202 58 343 1126 Destroy 0b10 Robot/C 960 | . 160 40 120 640 Destroy 0b10 Robot/NC 90 | 5 5 . 25 55 Destroy Leader 248 | . 32 10 38 168 Allied During Kill 56 | . . 8 9 39 Successful Hack 12 | . 5 . . 7 Disable Machine 75 | . . . 30 45 Destroy Structure 128 | . . . 31 97 Lose Combat Pursuer 165 | . . . 90 75 Influence Decreases 1241 | . 152 85 215 789 Entered New Map 145 | . 2 34 18 91 Time Decay 886 | . 150 51 187 498 Lost Part 140 | . . . 10 130 Lost Ally 70 | . . . . 70 Squads Dispatched 10 | . 1 1 1 7 Investigation 1 | . . 1 . . Extermination . | . . . . . Reinforcement 3 | . 1 . 1 1 Assault 3 | . . . . 3 Garrison 3 | . . . . 3 Intercept . | . . . . . Searches Triggered . | . . . . . Construction Impeded . | . . . . . Haulers Reinforced . | . . . . . Active Scanning Responses . | . . . . . Cargo Convoy Interrupts . | . . . . . Stealth | -11 -10 -10 -9 -9 --------- Run | Yrd Mat Min Mat Sto Distress Signals 6 | . 2 . . 4 Communications Jammed . | . . . . . Distress Signals . | . . . . . Times Spotted 84 | . 13 2 20 49 Peak Tracking Total 7 | . 7 2 7 6 Tactical Retreats 6 | . . . 2 4 Traps | -11 -10 -10 -9 -9 ------- Run | Yrd Mat Min Mat Sto Traps Triggered 1 | . . . 1 . Indirectly . | . . . . . Trap Hack Attempts . | . . . . . Triggered . | . . . . . Disarmed . | . . . . . Reprogrammed . | . . . . . Reused . | . . . . . Traps Extracted . | . . . . . Installed . | . . . . . Triggered . | . . . . . Machines | -11 -10 -10 -9 -9 ---------- Run | Yrd Mat Min Mat Sto Machines Disabled 5 | . . . 2 3 Max in Single Turn 1 | . . . 1 1 Machines Repaired . | . . . . . Machines Dismantled . | . . . . . Machines Sabotaged . | . . . . . Overloaded Fab Kills . | . . . . . Hacking | -11 -10 -10 -9 -9 --------- Run | Yrd Mat Min Mat Sto Machines Accessed 8 | . 1 1 . 6 Terminals 6 | . 1 . . 5 Fabricators . | . . . . . Repair Stations . | . . . . . Recycling Units . | . . . . . Scanalyzers . | . . . . . Garrison Access 1 | . . . . 1 Total Hacks 10 | . 1 1 . 8 Successful 7 | . 1 1 . 5 Failed 3 | . . . . 3 Catastrophic 1 | . . . . 1 Database Lockouts . | . . . . . Manual 2 | . . . . 2 Terminals 7 | . 1 . . 6 Fabricators . | . . . . . Repair Stations . | . . . . . Recycling Units . | . . . . . Scanalyzers . | . . . . . Garrison Access 2 | . . . . 2 Terminal Hacks 6 | . 1 1 . 4 Record 1 | . . . . 1 Open Door 4 | . . 1 . 3 Zone Layout 1 | . 1 . . . Fabricator Hacks . | . . . . . Repair Station Hacks . | . . . . . Recycling Unit Hacks . | . . . . . Scanalyzer . | . . . . . Garrison Access Hacks . | . . . . . Unauthorized Hacks 1 | . . . . 1 Terminals . | . . . . . Fabricators . | . . . . . Repair Stations . | . . . . . Recycling Units . | . . . . . Scanalyzers . | . . . . . Garrison Access 1 | . . . . 1 Watchers 1 | . . . . 1 Data Cores Recovered . | . . . . . Used . | . . . . . Hacking Detections 4 | . 1 . . 3 Full Trace Events . | . . . . . Feedback Events . | . . . . . Feedback Blocked . | . . . . . Robot Schematics Acquired . | . . . . . Robots Built . | . . . . . Authchips . | . . . . . Time . | . . . . . Total Robot Build Rating . | . . . . . Part Schematics Acquired . | . . . . . Parts Built . | . . . . . Authchips . | . . . . . Time . | . . . . . Total Part Build Rating . | . . . . . Part Studies Acquired . | . . . . . Parts Repaired . | . . . . . Time . | . . . . . Parts Recycled . | . . . . . Recycled Matter . | . . . . . Retrieved Matter . | . . . . . Retrieved Components . | . . . . . Parts Scanalyzed . | . . . . . Part Schematics Acquired . | . . . . . Parts Damaged . | . . . . . Bothacking | -11 -10 -10 -9 -9 ------------ Run | Yrd Mat Min Mat Sto Used RIF Installer . | . . . . . Robots Hacked . | . . . . . Non-combat . | . . . . . Combat . | . . . . . Robot Hacks Applied . | . . . . . Relay Couplers Released . | . . . . . Fabnet Peak Effective % . | . . . . . Robots Rewired . | . . . . . Allies Hacked . | . . . . . Hacks Repelled . | . . . . . Allies | -11 -10 -10 -9 -9 -------- Run | Yrd Mat Min Mat Sto Total Allies 5 | . . 3 . 2 Largest Group 3 | . . 3 2 2 Highest-Rated Group 62 | . . 40 32 62 Highest-Rated Ally 31 | . . 16 16 31 Total Orders . | . . . . . Ally Attacks 53 | . . 5 12 36 Total Damage 716 | . . 60 112 544 Kills 15 | . . 2 2 11 Allies Corrupted . | . . . . . Allies Melted . | . . . . . Intel | -11 -10 -10 -9 -9 ------- Run | Yrd Mat Min Mat Sto Active Infowar (turns) 1549 | 8 280 258 482 521 Sensors 1406 | . 145 258 482 521 Seismic 143 | 8 135 . . . Robot Analysis Total . | . . . . . Derelict Logs Recovered . | . . . . . Drone Launches 2 | . . . . 2 Drone Recoveries . | . . . . . Exploration | -11 -10 -10 -9 -9 ------------- Run | Yrd Mat Min Mat Sto Turns Passed 2626 | 74 375 258 581 1338 Spaces Moved 1458 | 41 235 199 373 610 Core 15 | 14 . . . 1 Treads . | . . . . . Legs 1443 | 27 235 199 373 609 Wheels . | . . . . . Hover . | . . . . . Flight . | . . . . . Fastest Speed 50 | 50 120 120 120 120 Average Speed 131 | 128 120 120 120 147 Slowest Speed 400 | 200 120 120 120 400 Overloaded Moves . | . . . . . Propulsion Burnouts . | . . . . . Robots Hopped . | . . . . . Potential Cave-ins 4 | . . . 4 . Cave-ins Triggered . | . . . . . Exploration Rate (%) 41 | 4 48 41 29 84 Regions Visited 4 Branch Regions 2 Pre-discovered Areas . | . . . . . Known Exits Taken . | . . . . . Unknown Exits Taken 4 | 1 1 1 1 . Scrap Searched 1 | . . 1 . . Spaces Dug 3 | . . . . 3 Terrain Destroyed 132 | . . . 44 88 Melee 3 | . . . . 3 Projectile 6 | . . . 4 2 AOE 123 | . . . 40 83 Terrain Rammed . | . . . . . Walls Destroyed . | . . . . . Machines Disabled . | . . . . . Actions | -11 -10 -10 -9 -9 --------- Run | Yrd Mat Min Mat Sto Total 1944 | 56 292 223 474 899 Wait 211 | 1 11 8 59 132 Move 1454 | 40 234 198 372 610 Hop . | . . . . . Pick Up 47 | 7 10 6 5 19 Fast Attach 13 | 7 . . 1 5 Attach 17 | . 1 . 3 13 Detach 1 | . . . . 1 Swap 44 | . 4 3 10 27 Drop 33 | . 11 8 4 10 Fire 89 | 1 21 . 16 51 Melee 31 | . . . . 31 Ram . | . . . . . Kick 4 | . . . 4 . Crush . | . . . . . Escape Stasis . | . . . . . Rewire . | . . . . . Trap . | . . . . . Miscellaneous . | . . . . . Route ------- -11/Scrapyard -10/Materials (discovered 2 exits: [Mat] / *Min) -10/Mines -9/Materials -9/Storage History --------- Turn | Location | Event 18 | -11/Scrapyard | Discovered new exit (range 16) 75 | -11/Scrapyard | Entered Materials 329 | -10/Materials | Discovered new exit (range 16) 365 | -10/Materials | Build established: Mutant 424 | -10/Materials | Discovered new exit (range 6) 450 | -10/Materials | Entered Mines 609 | -10/Mines | Assisted by bots powering up and referring to "LRC-V3" 624 | -10/Mines | Discovered new exit (range 9) 671 | -10/Mines | Met a Derelict shopkeep closing up shop 708 | -10/Mines | Entered Materials 708 | -9/Materials | Accompanied by 2 allies 708 | -9/Materials | Evolved 2 slots: Propulsion x1, Weapon x1 1014 | -9/Materials | Build established: Scavenger-Skirmisher 1175 | -9/Materials | Discovered new exit (range 15) 1289 | -9/Materials | Entered Storage 1289 | -9/Storage | Accompanied by 1 ally 1452 | -9/Storage | Met a pair of Derelict thieves 1913 | -9/Storage | Garrison activated, responded to threat 1942 | -9/Storage | Core integrity fell below 50% 1979 | -9/Storage | Lost 5 parts (2n2u1w) 2089 | -9/Storage | First assault squad dispatched 2138 | -9/Storage | Core integrity fell below 20% 2165 | -9/Storage | Lost 3 parts (1p2n) 2543 | -9/Storage | Build established: Scavenger-Mutant 2627 | -9/Storage | Destroyed by G-34 Mercenary with Small Laser Last Messages --------------- 02431_ S-10 Pest destroyed. 02433_ K-01 Serf cleans the Transport Mainframe. 02435_ Destroyed Hover Unit. 02436_ K-01 Serf cleans the Transport Mainframe. 02453_ Connecting with Terminal... 02464_ K-01 Serf cleans the Terminal. 02498_ System corrupted: Matter fused (-6). 02536_ System corrupted: FCS attempts to trigger Hvy. Particle Cannon. 02536_ System corrupted: Hvy. Particle Cannon misfires. 02560_ System corrupted: Component data lost. 02572_ O-16 Technician uses terminal to summon reinforcements. 02572_ ALERT: Hostiles spotted, dispatching reinforcements to Terminal S012. 02572_ O-16 Technician locks terminal. 02598_ System corrupted: Matter fused (-8). 02601_ Imp. Medium Laser destroyed. Map ----- +----------------------------------------------------+ | ?????????????"###[+############ w | | ?????????????" =[ %=% | | ?????????????" !%! = | | ?????????????"#T#######+####### | | ?????????????####### # ## | | ???????????????????# "T" # %* | | ???????????????????# # | | ???????????????????# #! [[ | | ???????????????????# # [ | | ???????????????????# """"" # | | ???????????????????# """"" # "" | | ???????????????????# """"" # "G=% | | ???????????????????# # "" = | | ???????????????????######## # | | ??????????????????????????#"## ## | | ?????????????????##########"###### | | ????????########## + | | ????????# # ######### | | ????????# # #???????? | | ????????# # #???????? | | ????????# # """" #???????? | | ????????# # """" #???????? | | ????????# # """" #???????? | | ????????# # """"% #???????? | | ????????# #w ==%!=#???????? | | ????????# @ ######+###???????? | | ????????###g###+#####*%[=%####+#### | | ??????????# Y =[ | | ??????????# T ^ | | ??????????# ^^ | | ??????????### ####### ######### | | ????????#####+#####?## ##?## ##?? | | ????????# #??# #? ??? | | ????????# #??# #? """"??? | | ????????# #??# # """""?? | | ????????# #??# # """"" | | ??????? / #??# + | | ?????? # #??# # | | ????? # #??# # | | ???? ?# #??# #? | | ???# ??###########??# #?##"T"### | | ???# ????????????????# ########## | | ???#?????????????????# #! [ | | ?????????????????????# # [ | | ???????????????????### # | | ???????????????????#"" # = | | ???????????????????#"T + ] | | ???????????????????#"" # ! | | ???????###### #????### + | | ???????# ##### # | +----------------------------------------------------+ Best States ------------- Heat Dissipation 42 Energy Generation 18 Energy Capacity 280 Matter Stores 300 Matter Capacity 300 Sight Range 16 Robot Scan Range 14 Terrain Scan Density 10 Evasion (%) 55 Item Schematics ----------------- None Robot Schematics ------------------ None Fabricated ------------ Nothing Repaired ---------- Nothing Studied --------- None Alien Tech Used ----------------- None Achievements -------------- Significant Disruption Challenges ------------ None Game ------ Seed ProtonDirtyStorm Manual? 0 Play Time 00:38:49 Cumulative 12.8 hours Start 2026.08.03 @ 12:57:26 End 2026.08.03 @ 13:28:57 Sessions 1 Manual Loads 0 Difficulty Rogue Special Mode None Game No. 14 Rogue 14 Adventurer 0 Explorer 0 Win Type - Total 0 Types 0/0/0/0/0/0/0/0/0/0 Lore% 12 Gallery% 20 Achievement% 16 Wizard Run 0 Options --------- Layout 1 ASCII 0 Keyboard 1 Movement Numpad Keybinds 0 Fullscreen 2 Font 24/Smallcaps Map View 50x35 Zoom Use 0% Tactical HUD 1 Map Filters NONE Filters NONE Steam 1 RUN: 19d1f83e-23e7-4804-bc8c-7be6991271ab